Cogmind - Beta 15 @@@ ROGUE MODE // 2025.05.20 @ 10:41:29 Player: Niko Result: Destroyed by P-60 Hacker with Shock Rifle Performance ------------- Evolutions (4) 2000 Regions Visited (7) 1400 Robots Destroyed (51) 255 Value Destroyed (1958) 1958 Prototype IDs (4) 80 Alien Tech Used (0) 0 Bonus (6) 6 TOTAL SCORE: 5699 Bonus ------- High Alert Combat Kills 6 Cogmind --------- Core Integrity 0/850 Matter 17/300 Energy 100/100 System Corruption 0% Temperature Cool (0) Movement Core (50) Location -6/Factory Parts ------- > --- POWER (2) -------- (None) > --- PROPULSION (5) --- (None) > --- UTILITY (5) ------ Enhanced Optical Array > --- WEAPON (3) ------- (None) > --- INVENTORY (5) ---- Xenon Bombardment Thruster System Shield Relay Coupler [NC] (21) Relay Coupler [Sentry] (15) Relay Coupler [Specialist] (15) Peak State ------------ > --- POWER ------------ Micro Nuclear Core Micro Nuclear Core > --- PROPULSION ------- Medium Treads Medium Treads Medium Treads > --- UTILITY ---------- Large Storage Unit Structural Scanner Light Armor Plating Reactive Plating Improved Shield Generator > --- WEAPON ----------- Heavy Assault Rifle Heavy Assault Rifle Heavy Assault Rifle > --- INVENTORY -------- Medium Treads Coolant Injector Compact Matter Pod Compact Matter Pod Light Armor Plating Heavy Armor Plating Improved Light Armor Plating Improved Shield Generator Assault Rifle Heavy Assault Rifle Heavy Assault Rifle Minigun Flak Gun Mini Grenade Launcher [Rating: 40] Favorites ----------- Power Ion Engine Engine Ion Engine Power Core Micro Nuclear Core Propulsion Medium Treads Treads Medium Treads Leg Aluminum Leg Flight Unit Cesium-ion Thruster Utility Structural Scanner Device Structural Scanner Storage Small Storage Unit Processor Enhanced Optical Array Protection Light Armor Plating Weapon Heavy Assault Rifle Energy Gun Small Laser Energy Cannon Phase Cannon Ballistic Gun Heavy Assault Rifle Ballistic Cannon Heavy Flak Cannon Launcher Mini Grenade Launcher Build | -11 -10 -9 -8 -7 -7 -7 -6 ------- Run | Yrd Mat Mat Mat Fac Was Fac Fac Slots Evolved 8 | . . 2 2 2 . . 2 Power 1 | . . . . 1 . . . Propulsion 3 | . . . 1 . . . 2 Utility 3 | . . 1 1 1 . . . Weapon 1 | . . 1 . . . . . Parts Attached 45 | 6 4 9 10 5 . 3 8 Power 5 | 1 1 . 2 1 . . . Engine 2 | 1 1 . . . . . . Core 3 | . . . 2 1 . . . Reactor . | . . . . . . . . Propulsion 13 | 2 1 2 5 . . 3 . Treads 5 | . . . 4 . . 1 . Leg 6 | 2 1 2 1 . . . . Wheel . | . . . . . . . . Hover . | . . . . . . . . Flight 2 | . . . . . . 2 . Utility 12 | 1 1 2 3 2 . . 3 Device 3 | . 1 1 . 1 . . . Storage 2 | 1 . . 1 . . . . Processor 1 | . . . . . . . 1 Hackware . | . . . . . . . . Protection 6 | . . 1 2 1 . . 2 Artifact . | . . . . . . . . Weapon 15 | 2 1 5 . 2 . . 5 Energy Gun 1 | . 1 . . . . . . Energy Cannon 1 | . . . . . . . 1 Ballistic Gun 10 | 2 . 5 . 2 . . 1 Ballistic Cannon 2 | . . . . . . . 2 Launcher 1 | . . . . . . . 1 Special Weapon . | . . . . . . . . Impact Weapon . | . . . . . . . . Slashing Weapon . | . . . . . . . . Piercing Weapon . | . . . . . . . . Special Melee Weapon . | . . . . . . . . Unidentified Prototypes . | . . . . . . . . Parts Lost 15 | . 2 3 1 . 4 . 5 Power 1 | . . . . . 1 . . Propulsion 4 | . 1 2 . . 1 . . Utility 6 | . . 1 1 . 1 . 3 Weapon 4 | . 1 . . . 1 . 2 Highest Loss Streak 4 | . 2 1 1 . 4 . 3 To Critical Strikes . | . . . . . . . . Average Backups 8 | 1 5 7 9 13 13 4 3 Power 1 | . 1 3 1 . . . . Propulsion 1 | . 3 3 1 1 1 1 1 Utility 2 | . . . 3 7 7 2 1 Weapon 2 | . . . 3 5 4 1 . Tool/Special . | . . . . . . . . Unused Backups 25 | . . 1 9 1 10 . 4 Power 6 | . . 1 5 . . . . Propulsion 1 | . . . 1 . . . . Utility 12 | . . . 2 . 6 . 4 Weapon 6 | . . . 1 1 4 . . Tool/Special . | . . . . . . . . Average Slot Usage (%) 83 | . 98 92 96 99 82 21 28 Engine 6 | . 14 11 7 . . . . Core 3 | . . . 1 15 11 . . Treads 10 | . . . 20 23 18 . 2 Leg 10 | . 28 21 6 . . . . Device 12 | . 12 11 14 14 15 15 7 Storage 8 | . 14 11 9 7 5 . . Protection 7 | . . 5 10 15 11 . 5 Energy Gun 2 | . 1 10 . . . . . Ballistic Gun 19 | . 25 21 27 23 17 . . Peak Build Rating 40 | 6 8 14 32 40 40 13 25 Average Rating 20 | 3 7 12 25 39 32 8 15 On Entrance 14 | . 6 8 14 32 40 6 13 Naked Turns 32 | . . . . . . . 32 Heaviest Build 59 | 13 14 21 49 59 52 5 32 Greatest Support 84 | 20 23 26 84 84 84 28 28 Greatest Overweight (x) 5 | . . 1 1 . 1 1 5 Average Overweight (x) . | . . . . . . . . Largest Inventory Capacity 15 | 8 8 8 15 15 15 5 5 Average Capacity 10 | 6 8 8 12 15 13 5 5 Most Carried 15 | 4 8 8 15 15 15 5 5 Average Carried 8 | 1 5 7 10 14 13 5 3 Final Capacity 15 | 8 8 8 15 15 5 5 5 Final Carried 15 | 1 6 8 15 15 5 5 5 Class Distribution -------------------- 37% | Mutant 31% | Tank 21% | Skirmisher 9% | Scavenger-Tank Dominant Class ---------------- Mutant | -10/Materials Scavenger-Tank | -9/Materials Skirmisher | -8/Materials Tank | -7/Factory Tank | -7/Waste Mutant | -7/Factory Mutant | -6/Factory Resources | -11 -10 -9 -8 -7 -7 -7 -6 ----------- Run | Yrd Mat Mat Mat Fac Was Fac Fac Matter Collected 1796 | 242 190 328 644 311 20 . 61 Remotely . | . . . . . . . . Salvage Created 1958 | . 286 664 492 311 . . 205 Parts 106 | . 13 36 32 14 . . 11 Haulers Intercepted . | . . . . . . . . Recyclers Shooed 1 | . . . 1 . . . . Parts Field Recycled . | . . . . . . . . Retrieved Matter . | . . . . . . . . Parts Self-Destructed . | . . . . . . . . Prevented . | . . . . . . . . Kills | -11 -10 -9 -8 -7 -7 -7 -6 ------- Run | Yrd Mat Mat Mat Fac Was Fac Fac Combat Hostiles Destroyed 46 | . 6 18 8 5 . . 9 Guns 37 | . 6 18 8 5 . . . Cannons 5 | . . . . . . . 5 AOE 4 | . . . . . . . 4 Classes Destroyed 9 | . 2 2 3 1 . . 1 Builder 2 | . . . 2 . . . . Watcher 3 | . 1 1 1 . . . . Swarmer 10 | . . 6 . . . . 4 Grunt 21 | . 6 8 2 2 . . 3 Brawler 1 | . . . 1 . . . . Duelist 1 | . . . . . . . 1 Sentry 11 | . . 4 4 2 . . 1 Hunter 1 | . . . 1 . . . . Programmer 1 | . . . . 1 . . . Best Kill Streak 4 | . 4 4 4 1 . . 4 Combat Bots Only 4 | . 4 3 3 1 . . 4 Max Kills in Single Turn 2 | . 1 2 1 1 . . 2 Gunslinging 1 | . . 1 . . . . . Exploded 2 | . . . . . . . 2 Melee . | . . . . . . . . Uniques/NPCs Destroyed . | . . . . . . . . Combat | -11 -10 -9 -8 -7 -7 -7 -6 -------- Run | Yrd Mat Mat Mat Fac Was Fac Fac Hostile Shots Fired 524 | . 56 76 75 91 5 17 204 Missed 189 | . 13 26 24 40 1 9 76 Hits 335 | . 43 50 51 51 4 8 128 Melee 7 | . . . 1 . 4 . 2 Projectile 328 | . 43 50 50 51 . 8 126 Critical Strikes 10 | . 1 . 1 . 3 . 5 Damage Taken 4294 | . 537 569 644 275 132 90 2047 Core 1273 | . 134 91 75 19 42 50 862 Absorbed by Shields 182 | . . . . 99 47 21 15 Ignored by Resistances 128 | . . . 78 50 . . . Regen/Repaired (Parts) 25 | . . . 25 . . . . Core Remaining (%) 78 | 100 46 77 86 . . 84 . Volleys Fired 165 | . 49 36 33 16 . . 31 Largest 3 | . 2 3 3 3 . . 2 Hottest 115 | . 60 86 69 69 . . 115 Shots Fired 392 | . 96 108 101 48 . . 39 Gun 358 | . 96 108 101 48 . . 5 Cannon 21 | . . . . . . . 21 Launcher 13 | . . . . . . . 13 Special . | . . . . . . . . Kinetic 333 | . 90 72 101 48 . . 22 Thermal 46 | . 6 36 . . . . 4 Explosive 13 | . . . . . . . 13 Electromagnetic . | . . . . . . . . Robot Hit Streak 16 | . 16 12 11 12 . . 10 Robot Miss Streak 8 | . 3 8 4 1 . . 8 Penetration Max . | . . . . . . . . Secondary Targets 4 | . . 4 . . . . . Max Gunslinging Chain 2 | . . 2 . . . . . Shots Hit Robots 235 | . 50 65 56 37 . . 27 Core Hits 126 | . 18 31 25 13 . . 39 Critical Kills 2 | . 1 1 . . . . . Critical Parts Destroyed . | . . . . . . . . Critical Strikes 2 | . 1 1 . . . . . Destroy 2 | . 1 1 . . . . . Melee Attacks . | . . . . . . . . Impact . | . . . . . . . . Slashing . | . . . . . . . . Piercing . | . . . . . . . . Sneak Attacks . | . . . . . . . . Combat Hostiles . | . . . . . . . . Follow-up Attacks . | . . . . . . . . Damage Inflicted 3772 | . 534 887 818 558 . . 975 Guns 2849 | . 534 887 813 558 . . 57 Cannons 337 | . . . . . . . 337 Explosions 559 | . . . . . . . 559 Melee . | . . . . . . . . Ramming 27 | . . . 5 . . . 22 Kinetic 2752 | . 470 638 813 558 . . 273 Thermal 434 | . 64 249 . . . . 121 Explosive 559 | . . . . . . . 559 Electromagnetic . | . . . . . . . . Impact . | . . . . . . . . Slashing . | . . . . . . . . Piercing . | . . . . . . . . Highest Corruption 8 | . . . 4 1 8 8 . Average Corruption 3 | . . . 4 1 7 8 . Corruption Purged . | . . . . . . . . Corruption Blocked . | . . . . . . . . Effects 20 | . . . 10 3 3 4 . Message Errors 4 | . . . 3 . . 1 . Matter Fused 2 | . . . . 1 1 . . Heat Flow Errors 3 | . . . 2 1 . . . Energy Discharges 1 | . . . . . 1 . . Parts Rejected 2 | . . . 2 . . . . Data Loss (minor) 2 | . . . . . 1 1 . Data Loss (major) 1 | . . . . . . 1 . Misfires 2 | . . . 2 . . . . Alerts 3 | . . . 1 1 . 1 . Overload Shots . | . . . . . . . . Overflow Damage 8 | . . . . . . . 8 Projectiles . | . . . . . . . . Explosions 8 | . . . . . . . 8 Melee . | . . . . . . . . Knockbacks 9 | . . . . . . . 9 Impact . | . . . . . . . . Kinetic 9 | . . . . . . . 9 Secondary . | . . . . . . . . Self-Inflicted Damage 125 | . . . . . . . 125 Shots 4 | . . . . . . . 4 Rammed 7 | . . . 1 . . . 6 Targets Rammed 8 | . . . 2 . . . 6 Kicked 1 | . . . 1 . . . . Crushed . | . . . . . . . . Highest Temperature 202 | . 24 125 202 153 . . 42 Average Temperature 42 | . 10 47 35 64 . . 16 Received Heat Transfer 1233 | . 324 195 180 56 . . 478 Siege Activations . | . . . . . . . . Martial Activations . | . . . . . . . . Shielding Activations . | . . . . . . . . Robots Disrupted . | . . . . . . . . Combat Hostiles . | . . . . . . . . Robots Corrupted . | . . . . . . . . Combat Hostiles . | . . . . . . . . Parts Fried . | . . . . . . . . Impact Corruptions . | . . . . . . . . Robots Melted . | . . . . . . . . Combat Hostiles . | . . . . . . . . Parts Melted 1 | . 1 . . . . . . Heat Transferred 873 | . 150 575 . . . . 148 Parts Sabotaged . | . . . . . . . . Parts Stolen . | . . . . . . . . Parts Stripped . | . . . . . . . . Power Chain Reactions . | . . . . . . . . Alert | -11 -10 -9 -8 -7 -7 -7 -6 ------- Run | Yrd Mat Mat Mat Fac Was Fac Fac Maximum Alert Level 2 | . . 1 . . . . 2 Low Security (%) 88 | 100 100 83 100 100 100 100 47 Level 1 9 | . . 16 . . . . 42 Level 2 1 | . . . . . . . 10 Level 3 . | . . . . . . . . Level 4 . | . . . . . . . . Level 5 . | . . . . . . . . High Security . | . . . . . . . . Max Security . | . . . . . . . . Peak Influence 416 | . 96 253 155 53 . 15 416 Initial 96 | . . 26 96 . . . 2 Average 60 | . 22 83 51 8 . 2 184 Influence Increases 1753 | . 195 474 284 162 . 15 623 Destroy 0b10 Robot/C 920 | . 120 360 160 100 . . 180 Destroy 0b10 Robot/NC 25 | . 5 5 15 . . . . Destroy Leader 256 | . 32 92 62 40 . . 30 Successful Hack 30 | . 8 15 2 5 . . . Disable Machine 45 | . . . . . . . 45 Anti-Garrison Action 150 | . . . . . . . 150 Destroy Structure 42 | . . 2 . 2 . . 38 Partial Spotted 60 | . . . 30 15 . 15 . Lose Combat Pursuer 225 | . 30 . 15 . . . 180 Influence Decreases 1345 | . 131 309 513 162 . 10 220 Entered New Map 174 | . . 38 133 . . . 3 Time Decay 950 | . 111 241 259 162 . 10 167 Lost Part 110 | . 20 30 10 . . . 50 Purge Threat 111 | . . . 111 . . . . Squads Dispatched 18 | . 2 3 2 5 . 1 5 Investigation 5 | . 1 2 2 . . . . Extermination 2 | . . . . 1 . . 1 Reinforcement 5 | . 1 1 . 1 . 1 1 Assault 2 | . . . . . . . 2 Garrison 4 | . . . . 3 . . 1 Intercept . | . . . . . . . . Searches Triggered . | . . . . . . . . Construction Impeded 1 | . . . . . . . 1 Haulers Reinforced . | . . . . . . . . Active Scanning Responses . | . . . . . . . . Cargo Convoy Interrupts . | . . . . . . . . Stealth | -11 -10 -9 -8 -7 -7 -7 -6 --------- Run | Yrd Mat Mat Mat Fac Was Fac Fac Distress Signals 9 | . 3 3 2 . . 1 . Communications Jammed . | . . . . . . . . Distress Signals . | . . . . . . . . Times Spotted 105 | . 11 25 19 6 6 8 30 Peak Tracking Total 10 | . 3 5 6 2 6 10 7 Tactical Retreats 5 | . 1 . 1 . . . 3 Traps | -11 -10 -9 -8 -7 -7 -7 -6 ------- Run | Yrd Mat Mat Mat Fac Was Fac Fac Traps Triggered 1 | . . . . 1 . . . Indirectly . | . . . . . . . . Trap Hack Attempts . | . . . . . . . . Triggered . | . . . . . . . . Disarmed . | . . . . . . . . Reprogrammed . | . . . . . . . . Reused . | . . . . . . . . Traps Extracted . | . . . . . . . . Installed . | . . . . . . . . Triggered . | . . . . . . . . Machines | -11 -10 -9 -8 -7 -7 -7 -6 ---------- Run | Yrd Mat Mat Mat Fac Was Fac Fac Machines Disabled 4 | . . . . . . . 4 Max in Single Turn 2 | . . . . . . . 2 Garrison Access 1 | . . . . . . . 1 Machines Repaired . | . . . . . . . . Machines Dismantled . | . . . . . . . . Machines Sabotaged . | . . . . . . . . Overloaded Fab Kills . | . . . . . . . . Hacking | -11 -10 -9 -8 -7 -7 -7 -6 --------- Run | Yrd Mat Mat Mat Fac Was Fac Fac Machines Accessed 13 | . 1 4 5 2 . 1 . Terminals 11 | . 1 4 4 1 . 1 . Fabricators 1 | . . . . 1 . . . Repair Stations 1 | . . . 1 . . . . Recycling Units . | . . . . . . . . Scanalyzers . | . . . . . . . . Garrison Access . | . . . . . . . . Total Hacks 41 | . 6 12 17 5 . 1 . Successful 20 | . 5 6 7 2 . . . Failed 21 | . 1 6 10 3 . 1 . Catastrophic 3 | . . 1 2 . . . . Database Lockouts . | . . . . . . . . Manual 15 | . 1 3 10 . . 1 . Terminals 35 | . 6 12 14 2 . 1 . Fabricators 3 | . . . . 3 . . . Repair Stations 3 | . . . 3 . . . . Recycling Units . | . . . . . . . . Scanalyzers . | . . . . . . . . Garrison Access . | . . . . . . . . Terminal Hacks 14 | . 5 5 3 1 . . . Record 7 | . 4 3 . . . . . Prototype ID Bank 2 | . . 2 . . . . . Open DSF 1 | . . . . 1 . . . Emergency Access Points 1 | . 1 . . . . . . Unreport Threat 2 | . . . 2 . . . . Zone Layout 1 | . . . 1 . . . . Fabricator Hacks 1 | . . . . 1 . . . Network Status 1 | . . . . 1 . . . Repair Station Hacks 2 | . . . 2 . . . . Scan Component 1 | . . . 1 . . . . Repair 1 | . . . 1 . . . . Recycling Unit Hacks . | . . . . . . . . Scanalyzer . | . . . . . . . . Garrison Access Hacks . | . . . . . . . . Unauthorized Hacks 3 | . . 1 2 . . . . Terminals 3 | . . 1 2 . . . . Botnet 2 | . . 1 1 . . . . Operators 1 | . . . 1 . . . . Fabricators . | . . . . . . . . Repair Stations . | . . . . . . . . Recycling Units . | . . . . . . . . Scanalyzers . | . . . . . . . . Garrison Access . | . . . . . . . . Data Cores Recovered . | . . . . . . . . Used . | . . . . . . . . Hacking Detections 10 | . 1 3 4 2 . . . Full Trace Events 5 | . . 3 2 . . . . Feedback Events . | . . . . . . . . Feedback Blocked . | . . . . . . . . Robot Schematics Acquired . | . . . . . . . . Robots Built . | . . . . . . . . Authchips . | . . . . . . . . Time . | . . . . . . . . Total Robot Build Rating . | . . . . . . . . Part Schematics Acquired . | . . . . . . . . Parts Built . | . . . . . . . . Authchips . | . . . . . . . . Time . | . . . . . . . . Total Part Build Rating . | . . . . . . . . Parts Repaired 1 | . . . 1 . . . . Time 26 | . . . 26 . . . . Parts Recycled . | . . . . . . . . Recycled Matter . | . . . . . . . . Retrieved Matter . | . . . . . . . . Retrieved Components . | . . . . . . . . Parts Scanalyzed . | . . . . . . . . Part Schematics Acquired . | . . . . . . . . Parts Damaged . | . . . . . . . . Bothacking | -11 -10 -9 -8 -7 -7 -7 -6 ------------ Run | Yrd Mat Mat Mat Fac Was Fac Fac Used RIF Installer . | . . . . . . . . Robots Hacked . | . . . . . . . . Non-combat . | . . . . . . . . Combat . | . . . . . . . . Robot Hacks Applied . | . . . . . . . . Relay Couplers Released 3 | . . . . . . . 3 Machine Destruction 3 | . . . . . . . 3 Fabnet Peak Effective % . | . . . . . . . . Robots Rewired . | . . . . . . . . Allies Hacked . | . . . . . . . . Hacks Repelled . | . . . . . . . . Allies | -11 -10 -9 -8 -7 -7 -7 -6 -------- Run | Yrd Mat Mat Mat Fac Was Fac Fac Total Allies . | . . . . . . . . Largest Group . | . . . . . . . . Highest-Rated Group . | . . . . . . . . Highest-Rated Ally . | . . . . . . . . Total Orders . | . . . . . . . . Ally Attacks . | . . . . . . . . Total Damage . | . . . . . . . . Kills . | . . . . . . . . Allies Corrupted . | . . . . . . . . Allies Melted . | . . . . . . . . Intel | -11 -10 -9 -8 -7 -7 -7 -6 ------- Run | Yrd Mat Mat Mat Fac Was Fac Fac Active Infowar (turns) 3647 | . 619 697 830 790 107 99 505 Optics 72 | . . . . . . . 72 Sensors 1808 | . 619 697 492 . . . . Structural 2272 | . . 13 830 790 107 99 433 Robot Analysis Total . | . . . . . . . . Derelict Logs Recovered . | . . . . . . . . Drone Launches . | . . . . . . . . Drone Recoveries . | . . . . . . . . Exploration | -11 -10 -9 -8 -7 -7 -7 -6 ------------- Run | Yrd Mat Mat Mat Fac Was Fac Fac Turns Passed 3829 | 51 666 697 830 790 107 99 589 Spaces Moved 2458 | 38 401 407 435 442 72 200 463 Core 318 | 12 . . . . 16 30 260 Treads 914 | . . . 285 442 56 3 128 Legs 984 | 26 401 407 150 . . . . Wheels . | . . . . . . . . Hover . | . . . . . . . . Flight 242 | . . . . . . 167 75 Fastest Speed 34 | 50 120 120 120 160 100 34 35 Average Speed 124 | 97 120 122 146 160 148 46 106 Slowest Speed 300 | 120 120 190 240 160 240 160 300 Overloaded Moves . | . . . . . . . . Propulsion Burnouts . | . . . . . . . . Robots Hopped 5 | . . . . . . 5 . Potential Cave-ins . | . . . . . . . . Cave-ins Triggered . | . . . . . . . . Exploration Rate (%) 29 | 3 56 35 37 13 74 8 13 Regions Visited 7 Branch Regions . Pre-discovered Areas . | . . . . . . . . Known Exits Taken . | . . . . . . . . Unknown Exits Taken 5 | 1 1 1 1 . . 1 . Scrap Searched . | . . . . . . . . Spaces Dug . | . . . . . . . . Terrain Destroyed 67 | . . . . . . . 67 Melee . | . . . . . . . . Projectile . | . . . . . . . . AOE 67 | . . . . . . . 67 Terrain Rammed . | . . . . . . . . Walls Destroyed . | . . . . . . . . Machines Disabled . | . . . . . . . . Actions | -11 -10 -9 -8 -7 -7 -7 -6 --------- Run | Yrd Mat Mat Mat Fac Was Fac Fac Total 2917 | 51 498 527 559 491 71 198 522 Wait 160 | 1 36 65 39 19 . . . Move 2442 | 37 400 406 434 442 71 189 463 Hop 5 | . . . . . . 5 . Pick Up 53 | 7 8 6 22 5 . . 5 Fast Attach 16 | . . 3 4 1 . 3 5 Attach 25 | 6 3 3 6 3 . . 4 Detach 1 | . . . . . . . 1 Swap 8 | . 1 3 3 1 . . . Drop 34 | . 1 5 16 4 . 1 7 Fire 165 | . 49 36 33 16 . . 31 Melee . | . . . . . . . . Ram 5 | . . . . . . . 5 Kick 1 | . . . 1 . . . . Crush 2 | . . . 1 . . . 1 Escape Stasis . | . . . . . . . . Rewire . | . . . . . . . . Trap . | . . . . . . . . Miscellaneous . | . . . . . . . . Route ------- -11/Scrapyard -10/Materials (discovered 2 exits: *Mat / [*Min]) -9/Materials -8/Materials -7/Factory -7/Waste -7/Factory -6/Factory History --------- Turn | Location | Event 3 | -11/Scrapyard | Discovered new exit (range 16) 52 | -11/Scrapyard | Entered Materials 119 | -10/Materials | Discovered new exit (range 15) 310 | -10/Materials | Build established: Mutant 552 | -10/Materials | Derelicts attacked the area 706 | -10/Materials | Discovered new exit (range 11) 716 | -10/Materials | Core integrity fell below 50% 718 | -10/Materials | Entered another Materials area 718 | -9/Materials | Evolved 2 slots: Utility x1, Weapon x1 1196 | -9/Materials | Build established: Scavenger-Tank 1390 | -9/Materials | Discovered new exit (range 5) 1415 | -9/Materials | Entered another Materials area 1415 | -8/Materials | Evolved 2 slots: Propulsion x1, Utility x1 1550 | -8/Materials | Build established: Skirmisher 1691 | -8/Materials | Repaired Ion Engine 2075 | -8/Materials | Discovered new exit (range 5) 2221 | -8/Materials | Build established: Tank 2245 | -8/Materials | Entered Factory 2245 | -7/Factory | Evolved 2 slots: Power x1, Utility x1 2464 | -7/Factory | Garrison activated, responded to threat 3035 | -7/Factory | Sucked down chute 3035 | -7/Factory | Entered Waste 3050 | -7/Waste | EMP discharged 3080 | -7/Waste | Spotted C-40 Crusher 3088 | -7/Waste | Spotted C-40 Crusher 3101 | -7/Waste | Spotted C-40 Crusher 3106 | -7/Waste | Spotted C-40 Crusher 3108 | -7/Waste | Spotted C-40 Crusher 3111 | -7/Waste | Spotted C-40 Crusher 3111 | -7/Waste | Crushed by Compactor (1 part destroyed, 1 dropped) 3114 | -7/Waste | Crushed by Compactor (1 part destroyed, 2 dropped) 3122 | -7/Waste | Crushed by Compactor (1 part destroyed, 2 dropped) 3125 | -7/Waste | Crushed by Compactor (1 part destroyed, 2 dropped) 3131 | -7/Waste | Discovered new exit (range 12) 3142 | -7/Waste | Entered Factory 3156 | -7/Factory | Lost 4 parts (1p1n1u1w) 3231 | -7/Factory | Discovered new exit (range 8) 3241 | -7/Factory | Entered another Factory area 3241 | -6/Factory | Evolved 2 slots: Propulsion x2 3409 | -6/Factory | Build established: Mutant 3455 | -6/Factory | Garrison activated, responded to threat 3727 | -6/Factory | Core integrity fell below 50% 3756 | -6/Factory | Lost 3 parts (1u2w) 3815 | -6/Factory | Spotted B-75 Beast 3826 | -6/Factory | Core integrity fell below 20% 3830 | -6/Factory | Destroyed by P-60 Hacker with Shock Rifle Last Messages --------------- K-01 Serf collects debris. Slammed into K-01 Serf. Critical hit (Burn: +37). G-67 Veteran knocked back. Acquired Autogun. Acquired 20 matter. Acquired 6 matter. Critical hit (Burn: +50). G-50 Soldier suffers critical hit (Burn). Hvy. Flak Cannon destroyed. Dropped Autogun. ALERT: Potential suspicious activity detected, Programmers report to Factory Zone 3I. Acquired Enh. Optical Array. ALERT: Cargo convoy en route, clear transfer corridor. Dropped Phase Cannon. Acquired System Shield. Slammed into S-27 Virus. [Achievement: Achiever] Map ----- +----------------------------------------------------+ | ?????????????????????????????????????????????????? | | ?????????????????????????????????????????????????? | | ?????????????????????????????????????????????????? | | ?????????????????????????????????????????????????? | | ?????????????????????????????????????????????????? | | ?????????????????????????????????????????????????? | | ?????????????????????????????????????????????????? | | ?????????????????????????????????????????????????? | | ?????????????????????????????????????????????????? | | ?????????????????????????????????????????????????? | | ??????????????????########???????????????????????? | | ??????????????????# ???????????????????????? | | ???????????????#### ???????????????????????? | | ???????????????? ???????????????????????? | | ????????????????? +??????????????????????? | | ?????????????????? #??????????????????????? | | ??????????????????# #??????????????????????? | | ??????????????????# #??????????????????????? | | ??????????????????# #??????????????????????? | | ??????????????????# #??????????????????????? | | ??????????????????# A #??????????????????????? | | ??????????????????# #????????#########?????? | | ################### #????????# #?????? | | ########## #?????? | | sss A w #?????? | | s@ " #?????? | | k u p #?????? | | R ############### #?????? | | ####+########### #?????????????# #?????? | | #??# ################# ###?????? | | "" #??# + #?# #???????? | | "" ] """" #??# ##### #?# #???????? | | "" """" #??# #???# #?# #???????? | | T """" #### #???# ### ###?????? | | "" """" + #???# """ """ # #?????? | | "" ######+####### """ """ # ##+#### | | "" """" # # """ """ # | | """" # """"""" # + | | = """" # """"""" # """ """ # """ | | ] """" # ] """"""" # """ """ # ## | | # """"""" # """ """ # #? | | ############# # ####+####?? "" | | ????????????# """"""" # """ """ #???????????""F | | ????????????# """"""" # """ """ #??????????? "" | | ????????????# """"""" # """ """ #????????????## | | ????????????# """""""??# #?????????????? | | ????????????# ??###########?????????????? | | ????????????# ?????????????????????????? | | ????????????############?????????????????????????? | | ?????????????????????????????????????????????????? | +----------------------------------------------------+ Best States ------------- Heat Dissipation 37 Energy Generation 25 Energy Capacity 250 Matter Stores 300 Matter Capacity 300 Sight Range 22 Robot Scan Range 14 Terrain Scan Density 10 Armor Coverage 750 Resistance: KI 20 Evasion (%) 63 Recoil Reduction 3 Item Schematics ----------------- None Robot Schematics ------------------ None Fabricated ------------ Nothing Repaired ---------- Ion Engine | 58% | -8/Materials Alien Tech Used ----------------- None Achievements -------------- Achiever More Dakka Please Challenges ------------ None Game ------ Seed InsulatedThunderBeacon Manual? 0 Play Time 00:34:57 Cumulative 25.1 hours Start 2025.05.10 @ 20:53:04 End 2025.05.20 @ 10:41:29 Sessions 3 Manual Loads 0 Difficulty Rogue Special Mode None Game No. 45 Rogue 45 Adventurer 0 Explorer 0 Win Type - Total 0 Types 0/0/0/0/0/0/0/0/0/0 Lore% 14 Gallery% 23 Achievement% 25 Wizard Run 0 Options --------- Layout 1 ASCII 0 Keyboard 0 Movement Mouse Keybinds 0 Fullscreen 1 Font 24/Smallcaps Map View 50x35 Zoom Use 0% Tactical HUD 0 Map Filters NONE Filters NONE Steam 1 RUN: ca276708-04a8-4ab6-b5ab-b3c3e9d82c12